bitfinex-derivatives/quotes_SOLF0:USTF0_20250404
["timestamp","ask_amount","ask_price","bid_price","bid_amount"]
[1743789425255,0.06252024,122.92,122.89,8.19719359]
[1743789425457,0.06252024,122.92,122.89,0.05709359]
[1743789425755,0.06252024,122.92,122.9,8.1391]
[1743789426157,0.06252024,122.92,122.89,0.05709359]
[1743789426357,8.20132024,122.92,122.89,8.19709359]
[1743789426560,0.06252024,122.92,122.89,0.05709359]
[1743789427746,8.1397,122.9,122.89,0.05709359]
[1743789428857,0.06252024,122.92,122.89,0.05709359]
[1743789429256,0.06252024,122.92,122.9,8.1394]
[1743789429457,0.06252024,122.92,122.89,0.05709359]
[1743789429958,4.526,122.98,122.9,7.60457725]
[1743789430154,9.001,122.98,122.91,45.38457725]
[1743789430353,8.1354,122.97,122.94,8.1368]
[1743789430554,9.001,122.98,122.94,8.1368]
[1743789430954,8.1354,122.97,122.91,37.78]
[1743789431162,8.19763685,122.97,122.95,0.05726778]
[1743789431966,0.06223685,122.97,122.95,0.05726778]
[1743789433166,0.06223685,122.97,122.95,37.81726778]
[1743789433558,8.19793685,122.97,122.95,37.81726778]
[1743789434468,8.1358,122.96,122.95,37.81726778]
[1743789434973,8.19773685,122.97,122.95,37.81726778]
[1743789435267,0.06223685,122.97,122.95,37.81726778]
[1743789436371,0.06223685,122.97,122.95,45.95306778]
[1743789436564,0.06223685,122.97,122.95,37.81726778]
[1743789436765,0.06223685,122.97,122.96,8.1358]
[1743789437070,3.685e-05,122.97,122.96,8.1358]
[1743789437272,8.1314,123.03,122.96,7.57340324]
[1743789437567,8.1314,123.03,123.01,8.1323]
[1743789437770,8.1318,123.02,123.0,37.76]
[1743789438073,8.735,123.05,123.0,37.76]
[1743789438269,0.05320708,123.02,123.0,37.82177045]
[1743789438468,0.05320708,123.02,123.0,45.95457045]
[1743789438770,0.05320708,123.02,123.0,37.82177045]
[1743789439672,0.05320708,123.02,123.01,8.1325]
[1743789439870,0.05320708,123.02,123.0,37.82177045]
[1743789440362,0.05320708,123.02,123.0,45.95427045]
[1743789440568,0.05320708,123.02,123.0,37.82177045]
[1743789441466,0.05320708,123.02,123.0,45.95457045]
[1743789442173,8.18510708,123.02,123.0,37.82177045]
[1743789442873,0.05320708,123.02,123.0,37.82177045]
[1743789444071,0.05320708,123.02,123.0,45.95447045]
[1743789444773,0.05320708,123.02,123.0,45.95457045]
[1743789444971,0.05320708,123.02,123.0,37.82177045]
[1743789445368,0.05320708,123.02,123.0,45.95487045]
[1743789445672,0.05320708,123.02,123.0,37.82177045]
[1743789445877,8.18530708,123.02,123.0,37.82177045]
[1743789446174,0.05320708,123.02,123.0,37.82177045]
[1743789446573,0.05320708,123.02,123.0,45.95457045]
[1743789447073,0.05320708,123.02,123.01,8.1325]
[1743789447777,17.04631745,123.11,123.01,17.04631745]
[1743789447981,8.6046,123.1,123.01,17.04631745]
[1743789448482,17.04631745,123.02,122.91,17.04631745]
[1743789448778,50.7472,123.01,122.96,8.1353]
[1743789448979,0.05367404,122.98,122.96,8.1353]
[1743789449881,0.05367404,122.98,122.97,8.1351]
[1743789455988,8.1322,123.02,122.95,0.05547291]
[1743789456185,37.7,123.05,122.96,37.68]
[1743789456389,8.133,123.01,122.97,8.1349]
[1743789456582,37.7,123.05,122.97,8.1349]
[1743789456989,8.1328,123.01,123.0,0.056814]
[1743789458485,0.05673605,123.02,122.93,37.68]
[1743789458684,4.2389,123.0,122.93,37.68]
[1743789458884,8.1348,122.98,122.94,8.1365]
[1743789459188,4.3783,122.99,122.91,0.2666]
[1743789459382,4.3783,122.99,122.92,45.23450796]
[1743789459577,0.05984823,122.96,122.94,0.05509971]
[1743789459991,0.05984823,122.96,122.94,8.19189971]
[1743789460287,0.05984823,122.96,122.94,0.05509971]
[1743789460688,8.1364,122.95,122.94,0.05509971]
[1743789460989,0.05984823,122.96,122.94,0.05509971]
[1743789461381,8.1364,122.95,122.94,0.05509971]
[1743789462288,8.19594823,122.96,122.94,0.05509971]
[1743789462485,0.05984823,122.96,122.94,0.05509971]
[1743789462890,0.05984823,122.96,122.89,8.14]
[1743789463079,0.05984823,122.96,122.87,29.9674141]
[1743789463283,8.138,122.93,122.87,29.9674141]
[1743789463494,37.68,122.95,122.87,29.9674141]
[1743789463691,4.3193,122.94,122.88,7.57004119]
[1743789463880,4.3193,122.94,122.87,29.9674141]
[1743789464090,4.3193,122.94,122.9,0.05385309]
[1743789464091,0.05816414,122.92,122.9,0.05385309]
[1743789464487,8.1391,122.91,122.9,0.05385309]
[1743789465398,0.05816414,122.92,122.86,8.142]
[1743789465598,4.5504,122.93,122.86,8.142]
[1743789465794,8.1412,122.88,122.85,8.1427]
[1743789466197,8.1407,122.89,122.82,37.66]
[1743789466397,0.06034145,122.88,122.86,8.142]
[1743789466598,0.06034145,122.88,122.85,0.05340376]
[1743789467199,0.06034145,122.88,122.86,45.27126205]
[1743789467395,0.06034145,122.88,122.86,37.68]
[1743789467598,4.145e-05,122.88,122.87,15.73032805]
[1743789469603,4.5504,122.93,122.87,7.58862805]
[1743789469807,8.1354,122.97,122.88,7.58862805]
[1743789470002,8.1354,122.97,122.89,7.58862805]
[1743789470204,8.1354,122.97,122.87,31.0173141]
[1743789470205,8.1354,122.97,122.9,45.26862805]
[1743789470402,8.1358,122.96,122.93,8.1373]
[1743789470602,4.3351,122.98,122.93,8.1373]
[1743789470803,0.05135315,122.96,122.93,8.19410766]
[1743789471003,8.18755315,122.96,122.93,8.19410766]
[1743789471204,0.05135315,122.96,122.93,8.19410766]
[1743789471406,0.05135315,122.96,122.93,0.05680766]
[1743789471801,0.05135315,122.96,122.9,37.68]
[1743789472110,8.1376,122.94,122.91,8.1386]
[1743789472908,0.05135315,122.96,122.9,37.68]
[1743789473205,29.9674141,123.04,122.91,7.63354862]
[1743789473402,8.1322,123.02,123.0,8.133]
[1743789473811,8.677,123.03,123.0,8.133]
[1743789474004,16.8087,123.03,123.0,8.133]
[1743789474204,8.677,123.03,122.97,37.66]
[1743789474610,0.05806984,123.01,122.99,0.06022597]
[1743789475105,8.19106984,123.01,122.99,0.06022597]
[1743789475413,0.05806984,123.01,122.99,0.06022597]
[1743789476416,8.19066984,123.01,122.99,0.06022597]
[1743789476815,0.05806984,123.01,122.99,0.06022597]
[1743789477115,0.05806984,123.01,122.99,8.19362597]
[1743789477516,8.19056984,123.01,122.99,0.06022597]
[1743789477717,0.05806984,123.01,122.99,0.06022597]
[1743789478112,8.1331,123.0,122.99,0.06022597]
[1743789480414,0.05806984,123.01,122.94,37.64]
[1743789480613,8.677,123.03,122.86,380.0571]
[1743789480814,8.677,123.03,122.89,45.21996477]
[1743789481015,8.677,123.03,122.91,29.9674141]
[1743789481217,8.677,123.03,122.92,7.57996477]
[1743789481425,0.0597745,122.99,122.96,0.05542958]
[1743789482625,0.0597745,122.99,122.98,8.1344]
[1743789483715,0.0597745,122.99,122.97,8.1348]
[1743789483924,0.0597745,122.99,122.96,0.05542958]
[1743789484123,0.0597745,122.99,122.97,8.1347]
[1743789484618,0.0597745,122.99,122.96,0.05542958]
[1743789485020,0.0597745,122.99,122.87,29.9674141]
[1743789485227,29.9674141,122.98,122.88,7.59256629]
[1743789485521,29.9674141,122.95,122.82,67.5874141]
[1743789485713,29.9674141,122.95,122.83,7.60561311]
[1743789485919,29.9674141,122.92,122.84,7.60561311]
[1743789486116,29.9674141,122.95,122.79,262.09828815]
[1743789486117,29.9674141,122.89,122.79,262.09828815]
[1743789486325,41.8736,122.88,122.81,224.47828815]
[1743789486917,8.1441,122.84,122.81,224.47828815]
[1743789487118,41.8736,122.88,122.81,224.47828815]
[1743789487321,41.8736,122.88,122.81,232.62348815]
[1743789487622,0.05661087,122.86,122.81,262.09828815]
[1743789488316,1.087e-05,122.86,122.82,7.65461408]
[1743789488622,4.2536,122.93,122.84,29.9674141]
[1743789488822,4.2536,122.93,122.85,45.21616468]
[1743789489010,4.2536,122.93,122.86,7.59616468]
[1743789489215,4.4426,122.97,122.87,37.56357878]
[1743789489413,8.8274,122.97,122.88,7.58259347]
[1743789489619,16.9628,122.97,122.94,8.1371]
[1743789490028,8.88029083,122.97,122.89,37.62]
[1743789490230,12.3912,122.96,122.94,0.06073307]
[1743789490722,12.45263095,122.96,122.94,0.06073307]
[1743789491028,4.31683095,122.96,122.94,0.06073307]
[1743789491235,0.06143095,122.96,122.95,8.1364]
[1743789492724,0.06143095,122.96,122.94,0.06073307]
[1743789492931,0.06143095,122.96,122.94,8.19753307]
[1743789493124,0.06143095,122.96,122.94,0.06073307]
[1743789493631,8.19723095,122.96,122.94,0.06073307]
[1743789494021,0.06143095,122.96,122.94,0.06073307]
[1743789494430,0.06143095,122.96,122.94,8.19783307]
[1743789494733,0.06143095,122.96,122.94,0.06073307]
[1743789494934,0.06143095,122.96,122.94,8.19743307]
[1743789495137,0.06143095,122.96,122.94,0.06073307]
[1743789495436,0.06143095,122.96,122.95,8.1364]
[1743789496237,0.06143095,122.96,122.94,8.19753307]
[1743789496438,0.06143095,122.96,122.94,0.06073307]
[1743789497134,0.06143095,122.96,122.94,8.19733307]
[1743789497342,0.06143095,122.96,122.94,0.06073307]
[1743789497742,0.06143095,122.96,122.95,8.1364]
[1743789498138,0.06143095,122.96,122.94,0.06073307]
[1743789498430,8.1364,122.95,122.94,0.06073307]
[1743789498637,0.06143095,122.96,122.94,0.06073307]
[1743789498833,8.1364,122.95,122.94,0.06073307]
[1743789499133,0.06143095,122.96,122.94,0.06073307]
[1743789499442,8.19783095,122.96,122.94,0.06073307]
[1743789499631,0.06143095,122.96,122.94,0.06073307]
[1743789500239,8.1364,122.95,122.94,0.06073307]
[1743789501136,0.06143095,122.96,122.87,29.9674141]
[1743789501337,322.7874141,122.98,122.88,45.19589273]
[1743789501535,322.7874141,122.98,122.89,7.59589273]
[1743789501735,322.7874141,122.98,122.88,37.6]
[1743789502141,8.1383,122.93,122.9,8.1397]
[1743789502743,8.19130057,122.94,122.91,8.1389]
[1743789503037,0.05400057,122.94,122.88,37.6]
[1743789503230,8.1381,122.93,122.9,8.1394]
[1743789503430,0.05400057,122.94,122.84,29.9674141]
[1743789503636,4.4253,122.95,122.86,45.1880625]
[1743789503836,8.1398,122.9,122.87,15.7494625]
[1743789504038,0.05799786,122.91,122.87,37.58]
[1743789504841,9.786e-05,122.91,122.88,7.61205887]
[1743789505026,9.786e-05,122.91,122.89,7.61205887]
[1743789505232,9.786e-05,122.91,122.9,7.61205887]
[1743789505433,9.786e-05,122.91,122.9,15.75175887]
[1743789506731,4.5323,122.99,122.9,7.61205887]
[1743789506927,4.5323,122.99,122.91,45.19205887]
[1743789507139,8.135,122.98,122.92,7.61770516]
[1743789507434,4.5323,122.99,122.91,37.58]
[1743789507640,8.1352,122.97,122.92,7.61655333]
[1743789507839,4.5323,122.99,122.93,8.1375]
[1743789508042,0.05673559,122.96,122.93,8.19576876]
[1743789508236,8.19283559,122.96,122.93,8.19576876]
[1743789509140,0.05673559,122.96,122.94,8.137]
[1743789509940,0.05673559,122.96,122.93,8.19566876]
[1743789510240,8.19283559,122.96,122.93,8.19566876]
[1743789510436,0.05673559,122.96,122.93,0.05826876]
[1743789511643,0.05673559,122.96,122.95,8.1364]
[1743789513039,0.05673559,122.96,122.95,15.74427476]
[1743789514442,0.05673559,122.96,122.95,8.1364]
[1743789514631,0.05673559,122.96,122.95,15.7399371]
[1743789515143,0.05673559,122.96,122.95,8.1364]
[1743789516543,0.05673559,122.96,122.95,15.73932332]
[1743789516743,0.05673559,122.96,122.95,8.1364]
[1743789517044,0.05673559,122.96,122.95,15.74016297]
[1743789518446,0.05673559,122.96,122.95,8.1364]
[1743789518945,3.559e-05,122.96,122.95,15.74604859]
[1743789519247,74.86307172,123.1,122.95,15.74964859]
[1743789519546,8.1295,123.06,122.97,29.9674141]
[1743789519749,8.1295,123.06,122.98,7.60964859]
[1743789519943,8.1287,123.07,122.99,7.60964859]
[1743789520144,8.1287,123.07,123.0,45.14964859]
[1743789520345,0.05994851,123.04,123.02,8.18376537]
[1743789520649,0.05994851,123.04,123.02,0.05226537]
[1743789521149,8.19044851,123.04,123.02,0.05226537]
[1743789521350,0.05994851,123.04,123.03,8.1311]
[1743789521549,0.05994851,123.04,123.03,15.72211876]
[1743789521844,0.05994851,123.04,123.02,8.18366537]
[1743789522052,0.05994851,123.04,123.02,0.05226537]
[1743789522448,0.05994851,123.04,123.03,8.1311]
[1743789522752,0.05994851,123.04,123.02,0.05226537]
[1743789523750,0.05994851,123.04,123.03,8.1311]
[1743789523953,4.1454,123.08,123.03,7.58278623]
[1743789524146,4.1454,123.08,123.04,45.12278623]
[1743789524452,4.1454,123.08,123.05,8.1294]
[1743789525051,4.19733461,123.08,123.05,8.18564695]
[1743789525258,0.05193461,123.08,123.05,0.05624695]
[1743789525445,12.5473,123.15,123.06,7.56690597]
[1743789525645,12.5473,123.15,123.07,7.56690597]
[1743789525954,12.5473,123.15,123.05,30.02366105]
[1743789525955,12.5473,123.15,123.08,75.05432007]
[1743789526153,12.5473,123.15,123.08,67.4874141]
[1743789526554,0.05416102,123.13,123.1,0.05310059]
[1743789527355,0.05416102,123.13,123.1,37.52]
[1743789527652,8.17906102,123.13,123.1,37.52]
[1743789528354,0.05416102,123.13,123.1,37.52]
[1743789528550,0.05416102,123.13,123.1,37.5734278]
[1743789529057,0.05416102,123.13,123.1,45.6993278]
[1743789529750,8.17876102,123.13,123.1,45.6993278]
[1743789529956,0.05416102,123.13,123.1,45.6993278]
[1743789530555,0.05416102,123.13,123.1,37.5734278]
[1743789531360,29.9674141,123.17,123.1,37.5734278]
[1743789531361,1.41374337,123.19,123.1,67.5408419]
[1743789531660,4.4821,123.2,123.1,67.4874141]
[1743789531848,8.1209,123.19,123.13,8.1245]
[1743789532048,8.1209,123.19,123.14,37.48]
[1743789532462,8.18065059,123.18,123.15,0.05248722]
[1743789532760,0.05945059,123.18,123.15,0.05248722]
[1743789533560,8.18105059,123.18,123.15,0.05248722]
[1743789533761,0.05945059,123.18,123.15,0.05248722]
[1743789534758,8.18105059,123.18,123.15,0.05248722]
[1743789534959,0.05945059,123.18,123.15,0.05248722]
[1743789535350,8.18105059,123.18,123.15,0.05248722]
[1743789535753,0.05945059,123.18,123.15,0.05248722]
[1743789535959,0.05945059,123.18,123.15,8.17538722]
[1743789536157,0.05945059,123.18,123.15,0.05248722]
[1743789536360,0.05945059,123.18,123.15,8.17528722]
[1743789537158,0.05945059,123.18,123.15,0.05248722]
[1743789537562,0.05945059,123.18,123.17,8.1219]
[1743789537761,0.05945059,123.18,123.15,0.05248722]
[1743789538255,0.05945059,123.18,123.15,37.51248722]
[1743789538657,8.122,123.17,123.15,37.51248722]
[1743789538859,0.05945059,123.18,123.15,37.51248722]
[1743789539759,8.18105059,123.18,123.15,37.51248722]
[1743789539964,0.05945059,123.18,123.15,37.51248722]
[1743789540564,0.05945059,123.18,123.15,0.05248722]
[1743789541865,8.1224,123.17,123.15,0.05248722]
[1743789542056,0.05945059,123.18,123.03,16.262]
[1743789542262,4.2688,123.16,123.07,37.44]
[1743789542460,4.2688,123.16,123.03,16.262]
[1743789542673,4.2688,123.16,123.08,37.44]
[1743789542967,4.5453,123.15,123.09,37.44]
[1743789543171,8.17855693,123.13,123.11,0.05745324]
[1743789543862,0.05365693,123.13,123.11,0.05745324]
[1743789544163,0.05365693,123.13,123.11,8.18325324]
[1743789545257,0.05365693,123.13,123.11,0.05745324]
[1743789545866,0.05365693,123.13,123.11,8.18295324]
[1743789546170,0.05365693,123.13,123.11,0.05745324]
[1743789547769,0.05365693,123.13,123.09,37.42]
[1743789547976,4.5453,123.15,123.08,37.42]
[1743789548164,4.5453,123.15,123.07,37.42]
[1743789548359,8.1268,123.1,123.07,37.42]
[1743789548564,4.5453,123.15,123.07,37.42]
[1743789548973,0.05474781,123.12,123.1,0.05203443]
[1743789549270,0.05474781,123.12,123.06,37.42]
[1743789549472,8.1282,123.08,123.06,37.42]
[1743789549666,29.9674141,123.13,123.06,37.42]
[1743789549865,8.1283,123.08,123.06,37.42]
[1743789550374,8.18026145,123.08,123.06,37.47203439]
[1743789550672,8.1285,123.07,123.06,0.05203439]
[1743789550973,0.05196145,123.08,123.04,37.42]
[1743789552275,0.05196145,123.08,123.0,8.133]
[1743789552473,37.47196145,123.08,122.97,30.9458141]
[1743789552771,0.05173578,123.05,123.02,8.1315]
[1743789552966,0.05173578,123.05,123.02,37.42]
[1743789555073,0.05173578,123.05,123.03,8.1308]
[1743789555466,0.05173578,123.05,123.02,37.42]
[1743789556966,0.05173578,123.05,123.04,8.1305]
[1743789557169,0.05173578,123.05,123.02,37.42]
[1743789557874,8.18183578,123.05,123.02,37.42]
[1743789558177,0.05173578,123.05,123.02,37.42]
[1743789558569,0.05173578,123.05,123.03,8.1307]
[1743789558872,8.18203578,123.05,123.02,37.42]
[1743789559380,61.21583878,123.19,123.03,7.54706529]
[1743789559576,4.3105,123.14,123.09,8.1267]
[1743789559775,4.3105,123.14,123.09,45.5467]
[1743789559977,4.3105,123.14,123.09,37.42]
[1743789560180,8.1248,123.13,123.09,45.5469]
[1743789560475,0.05834648,123.12,123.1,0.0547395]
[1743789560677,0.05834648,123.12,123.1,8.1812395]
[1743789561472,8.1259,123.11,123.1,0.0547395]
[1743789561775,0.05834648,123.12,123.1,0.0547395]
[1743789562179,8.18384648,123.12,123.1,0.0547395]
[1743789564378,0.05834648,123.12,123.1,8.1811395]
[1743789564877,8.18384648,123.12,123.1,0.0547395]
[1743789565379,0.05834648,123.12,123.1,0.0547395]
[1743789566785,8.1259,123.11,123.1,0.0547395]
[1743789567683,8.18384648,123.12,123.1,0.0547395]
[1743789568283,8.1259,123.11,123.1,0.0547395]
[1743789568982,0.05834648,123.12,123.1,0.0547395]
[1743789569383,0.05834648,123.12,123.11,7.57218421]
[1743789569579,8.6279,123.18,123.11,7.57218421]
[1743789569881,8.6279,123.18,123.06,16.2578]
[1743789570076,8.1249,123.13,123.1,8.1264]
[1743789570281,75.9953141,123.18,123.07,37.4]
[1743789570582,29.9674141,123.15,123.02,322.4874141]
[1743789570786,37.45800474,123.14,123.11,0.05736933]
[1743789570973,37.4,123.14,123.07,37.4]
[1743789571170,37.46022573,123.14,123.11,0.05824274]
[1743789571672,8.1252,123.12,123.11,0.05824274]
[1743789573088,4.1907,123.13,123.07,37.4]
[1743789573292,34.3161141,123.12,122.98,0.9782]
[1743789573487,34.3161141,123.12,123.02,8.1314]
[1743789573685,34.3161141,123.12,122.99,37.4]
[1743789573890,29.9674141,123.09,123.01,8.132]
[1743789574086,8.1305,123.04,123.02,7.57881889]
[1743789574387,0.05626397,123.06,123.02,8.18908586]
[1743789574690,0.05626397,123.06,123.03,7.57768597]
[1743789574889,0.05626397,123.06,123.04,7.57768597]
[1743789575084,0.05626397,123.06,123.03,37.4]
[1743789575383,0.05626397,123.06,123.02,0.05738586]
[1743789575587,0.05626397,123.06,123.03,15.70788621]
[1743789575794,0.05626397,123.06,123.03,8.1307]
[1743789576191,0.05626397,123.06,123.04,8.1304]
[1743789576382,0.05626397,123.06,123.02,0.05738586]
[1743789576577,0.05626397,123.06,123.03,7.57335106]
[1743789576881,0.05626397,123.06,123.03,8.1305]
[1743789577082,0.05626397,123.06,123.02,0.05738586]
[1743789577488,8.1311,123.03,123.02,0.05738586]
[1743789579482,8.1333,123.0,122.98,37.4]
[1743789579884,12.7144,123.05,122.98,37.4]
[1743789580192,8.1328,123.01,122.98,45.5343]
[1743789580591,8.18872525,123.01,122.98,45.5343]
[1743789580990,0.05592525,123.01,122.99,8.1334]
[1743789581296,0.05592525,123.01,122.98,37.4]
[1743789582095,0.05592525,123.01,123.0,8.1331]
[1743789587299,0.05592525,123.01,123.0,15.71426791]
[1743789588099,2.525e-05,123.01,123.0,15.71426791]
[1743789594504,8.5046,123.11,123.0,45.66858201]
[1743789594802,8.5046,123.11,123.03,29.9674141]
[1743789594997,4.2784,123.14,123.04,44.96116791]
[1743789595193,4.2784,123.14,123.05,7.58116791]
[1743789595394,8.1271,123.1,123.07,8.1282]
[1743789595593,8.1271,123.1,123.08,0.061724]
[1743789596092,8.18727139,123.1,123.08,0.061724]
[1743789596707,0.06017139,123.1,123.09,8.1272]
[1743789599502,0.06017139,123.1,123.08,45.569324]
[1743789599901,0.06017139,123.1,123.08,37.441724]
[1743789600508,0.06017139,123.1,123.09,8.1272]
[1743789600810,8.6952,123.15,123.09,7.57223225]
[1743789601004,4.1814,123.15,123.14,8.1239]
[1743789601203,4.1814,123.15,123.12,37.36]
[1743789601509,12.573,123.19,123.16,8.1222]
[1743789601901,4.4521,123.19,123.16,8.1222]
[1743789602101,4.51468627,123.19,123.16,0.05663015]
[1743789602711,8.1216,123.18,123.16,0.05663015]
[1743789603007,4.51468627,123.19,123.11,37.36]
[1743789603208,8.1224,123.17,123.14,8.1236]
[1743789603398,4.4521,123.19,123.11,37.36]
[1743789603812,4.4521,123.19,123.12,7.5785785]
[1743789604009,4.4521,123.19,123.11,37.36]
[1743789604208,0.05300119,123.17,123.14,0.05553978]
[1743789604509,8.17540119,123.17,123.14,8.17903978]
[1743789605305,8.17540119,123.17,123.15,8.1232]
[1743789605508,0.05300119,123.17,123.15,8.1232]
[1743789605710,0.05300119,123.17,123.14,0.05553978]
[1743789605920,0.05300119,123.17,123.11,8.1258]
[1743789606411,0.05300119,123.17,123.12,8.1252]
[1743789606609,29.9674141,123.18,123.09,37.34]
[1743789606904,29.9674141,123.15,123.05,292.56]
[1743789607114,4.2279,123.14,123.06,44.92538982]
[1743789607309,4.2279,123.14,123.07,7.58921474]
[1743789607505,0.0621515,123.11,123.06,37.34]
[1743789607708,0.0621515,123.11,123.07,7.58836974]
[1743789608008,0.0621515,123.11,123.09,8.1268]
[1743789608210,0.0621515,123.11,123.1,37.34]
[1743789608403,29.9674141,123.18,123.1,37.34]
[1743789608601,8.1229,123.16,123.12,8.1249]
[1743789608804,8.1229,123.16,123.1,37.34]
[1743789609102,8.1229,123.16,123.12,8.1248]
[1743789609303,8.1229,123.16,123.1,37.34]
[1743789609504,0.05958618,123.15,123.13,0.06205743]
[1743789609709,0.05958618,123.15,123.13,8.18645743]
[1743789610013,0.05958618,123.15,123.13,0.06205743]
[1743789610205,0.05958618,123.15,123.14,37.34]
[1743789610401,8.1214,123.18,123.14,37.34]
[1743789610911,8.1214,123.18,123.15,8.1228]
[1743789611511,8.17647961,123.18,123.15,8.18532017]
[1743789611715,0.05507961,123.18,123.16,8.1225]
[1743789612007,0.05507961,123.18,123.15,0.06252017]
[1743789612509,0.05507961,123.18,123.17,8.1219]
[1743789616709,0.05507961,123.18,123.15,0.06252017]
[1743789617214,8.1222,123.17,123.15,0.06252017]
[1743789617816,0.05507961,123.18,123.15,0.06252017]
[1743789618417,0.05507961,123.18,123.17,8.1219]
[1743789618710,0.05507961,123.18,123.17,37.3]
[1743789619413,0.05507961,123.18,123.17,45.4219]
[1743789619709,0.05507961,123.18,123.15,0.06252017]
[1743789620014,8.1226,123.16,123.15,0.06252017]
[1743789620218,0.05507961,123.18,123.15,0.06252017]
[1743789620518,8.1224,123.17,123.15,0.06252017]
[1743789620718,0.05507961,123.18,123.15,0.06252017]
[1743789621716,8.1225,123.17,123.15,0.06252017]
[1743789623009,8.17657961,123.18,123.15,8.18562017]
[1743789623214,0.05507961,123.18,123.15,0.06252017]
[1743789623413,8.1219,123.17,123.15,0.06252017]
[1743789623711,0.05507961,123.18,123.15,0.06252017]
[1743789624023,0.05507961,123.18,123.17,8.1219]
[1743789625010,7.961e-05,123.18,123.17,8.1219]
[1743789626512,7.961e-05,123.18,123.16,8.1222]
[1743789627119,7.961e-05,123.18,123.17,8.1219]
[1743789627815,4.2379,123.24,123.17,17.01090309]
[1743789628124,4.2379,123.24,123.18,37.28]
[1743789628420,17.01090309,123.23,123.17,37.28]
[1743789628618,8.1212,123.18,123.17,37.28]
[1743789629022,8.17685387,123.19,123.16,0.05252517]
[1743789629319,8.17685387,123.19,123.16,37.33252517]
[1743789629619,0.05595387,123.19,123.16,37.33252517]
[1743789630019,0.05595387,123.19,123.18,8.1212]
[1743789630419,0.05595387,123.19,123.16,37.33252517]
[1743789630718,0.05595387,123.19,123.17,8.1215]
[1743789631219,0.05595387,123.19,123.16,37.33252517]
[1743789631424,0.05595387,123.19,123.16,0.05252517]
[1743789631616,0.05595387,123.19,123.16,45.45502517]
[1743789631918,8.17685387,123.19,123.16,37.33252517]
[1743789632417,0.05595387,123.19,123.16,37.33252517]
[1743789632622,0.05595387,123.19,123.16,0.05252517]
[1743789633023,0.05595387,123.19,123.17,8.1215]
[1743789633329,0.05595387,123.19,123.16,0.05252517]
[1743789633626,0.05595387,123.19,123.17,8.1219]
[1743789633928,8.17665387,123.19,123.17,8.1219]
[1743789634422,8.17665387,123.19,123.16,0.05252517]
[1743789634629,0.05595387,123.19,123.16,0.05252517]
[1743789634821,0.05595387,123.19,123.15,37.28]
[1743789634822,17.06685696,123.19,123.15,37.28]
[1743789635125,8.6955,123.18,123.14,8.1235]
[1743789635335,17.01090309,123.17,123.08,20.45]
[1743789635627,17.01090309,123.09,123.07,14.3961]
[1743789635824,17.01090309,123.09,123.02,224.47828815]
[1743789636020,8.1305,123.04,123.03,7.57836264]
[1743789636228,8.1305,123.04,123.02,224.47828815]
[1743789636427,17.01090309,123.07,123.02,224.53941055]
[1743789636629,8.1311,123.03,123.02,224.53941055]
[1743789636927,8.1311,123.03,123.02,133.64626645]
[1743789637225,8.18956554,123.04,123.02,133.64626645]
[1743789637434,8.18956554,123.04,123.02,0.0611224]
[1743789637621,0.05876554,123.04,123.02,0.0611224]
[1743789637927,8.18946554,123.04,123.01,133.58514405]
[1743789638121,0.05876554,123.04,123.01,133.58514405]
[1743789638727,29.96876709,123.03,123.01,133.58514405]
[1743789638923,29.96876709,123.03,123.01,127.28244405]
[1743789639123,29.96876709,123.03,123.01,127.33657668]
[1743789639918,8.1318,123.02,123.01,127.33657668]
[1743789640117,29.96876709,123.03,123.01,127.33657668]
[1743789640420,8.1318,123.02,123.01,127.33657668]
[1743789640622,8.1318,123.02,123.01,0.05413263]
[1743789640935,0.05876554,123.04,123.01,0.05413263]
[1743789642132,0.05876554,123.04,123.02,8.1318]
[1743789642332,0.05876554,123.04,123.01,0.05413263]
[1743789644628,0.05876554,123.04,123.01,8.18633263]
[1743789644934,0.05876554,123.04,123.01,0.05413263]
[1743789645630,8.18946554,123.04,123.01,0.05413263]
[1743789646741,0.05876554,123.04,123.01,0.05413263]
[1743789647843,8.1318,123.02,123.01,0.05413263]
[1743789648336,8.12,123.02,122.94,4.2779]
[1743789648536,37.28,123.01,122.94,4.2779]
[1743789648837,8.1345,122.98,122.95,8.1361]
[1743789649040,37.28,123.01,122.95,8.1361]
[1743789649238,37.28,123.01,122.94,4.2779]
[1743789649439,0.05387813,122.99,122.97,0.02578852]
[1743789649841,8.1344,122.98,122.97,0.02578852]
[1743789650033,0.05387813,122.99,122.97,0.02578852]